Cogmind - Beta 13 *** ADVENTURER MODE // 2024.07.20 @ 09:41:07 Player: Jefffff Result: Destroyed by G-47 Trooper with Particle Gun Performance ------------- Evolutions (2) 1000 Regions Visited (7) 1400 Robots Destroyed (121) 605 Value Destroyed (5062) 5062 Prototype IDs (10) 200 Alien Tech Used (0) 0 Bonus (2295) 2295 TOTAL SCORE: 10562 Bonus ------- High Alert Combat Kills 1011 Follower Combat Kills 457 Entered Garrisons 200 Used RIF Installer 500 Aligned with FarCom 300 Friendly Fire -173 Cogmind --------- Core Integrity 0/550 Matter 261/300 Energy 150/150 System Corruption 9% Temperature Cool (9) Movement Walking (195) Ox1 Location -8/Materials Parts ------- > --- POWER (1) -------- Micro Nuclear Core > --- PROPULSION (4) --- Carbon-fiber Leg Titanium Leg Titanium Leg (fused) Flexi-carbon Leg > --- UTILITY (4) ------ Huge Storage Unit Transport Network Coupler Armor Integrity Analyzer Improved Weapon Shielding > --- WEAPON (2) ------- Improved Datajack Great Maul > --- INVENTORY (25) --- Deuterium Engine Carbon-fiber Leg Carbon-fiber Leg Improved Cooling System Machine Analyzer Improved Sensor Array Advanced Targeting Computer Armor Integrity Analyzer Transmission Jammer ECM Suite Reactive Plating System Shield Authchip [R/Combat] Authchip [R/Combat] Authchip [R/Combat] Relay Coupler [Duelist] (27) Relay Coupler [Duelist] (32) Skeleton Box Latent Energy Streamer Gauss Rifle Gauss Cannon AWS/Autocannon Remote Datajack Peak State ------------ > --- POWER ------------ Light Angular Momentum Engine > --- PROPULSION ------- Carbon-fiber Leg Titanium Leg Titanium Leg Flexi-carbon Leg > --- UTILITY ---------- Huge Storage Unit Transport Network Coupler Armor Integrity Analyzer Layered Light Armor Plating > --- WEAPON ----------- Gauss Rifle Gauss Cannon > --- INVENTORY -------- Light Nuclear Core Micro Nuclear Core Carbon-fiber Leg Carbon-fiber Leg Improved Heat Sink Machine Analyzer Improved Sensor Array Advanced Targeting Computer Armor Integrity Analyzer Transmission Jammer ECM Suite Improved Weapon Shielding Reactive Plating System Shield Authchip [R/Combat] Authchip [R/Combat] Relay Coupler [Brawler] Relay Coupler [Sentry] Skeleton Box Latent Energy Streamer AWS/Autocannon Remote Datajack Great Maul [Rating: 48] Favorites ----------- Power Deuterium Engine Engine Deuterium Engine Power Core Light Nuclear Core Propulsion Light Treads Treads Light Treads Leg Titanium Leg Wheel Compact Wheel Utility Huge Storage Unit Device ECM Suite Storage Huge Storage Unit Processor Transport Network Coupler Protection Core Shielding Weapon Gauss Rifle Energy Gun Shock Rifle Energy Cannon Particle Cannon Ballistic Gun Gauss Rifle Ballistic Cannon Gauss Cannon Special Weapon Remote Datajack Impact Weapon Hammer Slashing Weapon Katana Special Melee Weapon Improved Datajack Build | -11 -10 -10 -10 -9 -8 -8 -8 ------- Run | Yrd Mat Min Exi Min Mat Gar Mat Slots Evolved 4 | . . . . . 4 . . Power . | . . . . . . . . Propulsion 2 | . . . . . 2 . . Utility 2 | . . . . . 2 . . Weapon . | . . . . . . . . Parts Attached 135 | 6 27 . 7 . 46 46 3 Power 14 | 1 3 . . . 4 6 . Engine 9 | 1 2 . . . 3 3 . Core 5 | . 1 . . . 1 3 . Reactor . | . . . . . . . . Propulsion 58 | 2 11 . 2 . 27 15 1 Treads 26 | . . . . . 18 8 . Leg 14 | . 2 . . . 4 7 1 Wheel 18 | 2 9 . 2 . 5 . . Hover . | . . . . . . . . Flight . | . . . . . . . . Utility 23 | 1 5 . 1 . 8 8 . Device 7 | . 3 . 1 . 3 . . Storage 4 | 1 2 . . . . 1 . Processor 3 | . . . . . 2 1 . Hackware . | . . . . . . . . Protection 9 | . . . . . 3 6 . Artifact . | . . . . . . . . Weapon 40 | 2 8 . 4 . 7 17 2 Energy Gun 2 | . . . . . . 2 . Energy Cannon 4 | . 1 . 1 . 1 1 . Ballistic Gun 12 | 2 3 . . . 5 2 . Ballistic Cannon 6 | . 4 . . . . 2 . Launcher . | . . . . . . . . Special Weapon 5 | . . . 1 . . 4 . Impact Weapon 6 | . . . 2 . . 3 1 Slashing Weapon 3 | . . . . . . 3 . Piercing Weapon . | . . . . . . . . Special Melee Weapon 2 | . . . . . 1 . 1 Unidentified Prototypes 2 | . . . 2 . . . . Parts Lost 14 | . . . . . 5 9 . Power 3 | . . . . . 2 1 . Propulsion 7 | . . . . . 3 4 . Utility 2 | . . . . . . 2 . Weapon 2 | . . . . . . 2 . Highest Loss Streak 7 | . . . . . 2 7 . To Critical Strikes 2 | . . . . . . 2 . Average Slot Usage (%) 98 | . 96 100 99 100 97 98 99 Engine 5 | . 2 . . . 8 5 . Core 4 | . 10 14 14 14 . 3 9 Treads 17 | . . . . . 28 16 . Leg 7 | . 3 . . . . 18 35 Wheel 8 | . 23 28 28 28 6 . . Device 6 | . 12 14 14 14 8 . . Storage 10 | . 14 14 14 14 9 9 9 Processor 7 | . . . . . 6 11 18 Protection 9 | . . . . . 10 14 9 Energy Cannon 1 | . 10 14 7 . . . . Ballistic Gun 7 | . 3 . . . 12 3 . Ballistic Cannon 4 | . 13 14 6 . . 6 8 Impact Weapon 3 | . . . 13 28 1 4 5 Special Melee Weapon 1 | . . . . . 3 . 3 Naked Turns . | . . . . . . . . Heaviest Build 108 | 10 94 94 97 91 101 108 99 Greatest Support 86 | 26 26 20 32 32 86 86 69 Greatest Overweight (x) 33 | . 4 4 4 2 33 2 1 Average Overweight (x) 1 | . 1 4 3 2 1 1 1 Largest Inventory Capacity 25 | 8 25 25 25 25 25 25 25 Average Capacity 23 | 6 13 25 25 25 25 25 25 Most Carried 25 | 4 25 25 25 25 25 25 25 Average Carried 23 | . 10 25 24 24 24 24 24 Final Capacity 25 | 8 25 25 25 25 25 25 25 Final Carried 25 | . 25 25 25 25 25 24 25 Class Distribution -------------------- 61% | Mutant 37% | Scavenger-Mutant Dominant Class ---------------- Mutant | -10/Materials Mutant | -10/Mines Mutant | -10/Exiles Mutant | -9/Mines Mutant | -8/Materials Scavenger-Mutant | -8/Garrison Scavenger-Mutant | -8/Materials Resources | -11 -10 -10 -10 -9 -8 -8 -8 ----------- Run | Yrd Mat Min Exi Min Mat Gar Mat Matter Collected 3624 | 150 615 . . 78 1037 1492 252 Remotely . | . . . . . . . . Salvage Created 4460 | . 724 . . 43 1664 1679 350 Parts 242 | . 52 . . 1 93 85 11 Haulers Intercepted 7 | . 2 . . . 5 . . Recyclers Shooed 1 | . 1 . . . . . . Parts Field Recycled . | . . . . . . . . Retrieved Matter . | . . . . . . . . Parts Self-Destructed . | . . . . . . . . Prevented . | . . . . . . . . Kills | -11 -10 -10 -10 -9 -8 -8 -8 ------- Run | Yrd Mat Min Exi Min Mat Gar Mat Combat Hostiles Destroyed 87 | . 16 . . 3 20 39 9 Melee 16 | . . . . 3 4 8 1 Guns 26 | . 2 . . . 16 8 . Cannons 41 | . 14 . . . . 21 6 Classes Destroyed 15 | . 7 . . . 5 2 1 Worker 4 | . 1 . . . 2 . 1 Builder 4 | . 3 . . . 1 . . Tunneler 2 | . . . . . 2 . . Hauler 7 | . 2 . . . 5 . . Recycler 4 | . 1 . . . 3 . . Mechanic 1 | . . . . . 1 . . Watcher 11 | . 3 . . . 5 1 2 Swarmer 22 | . 5 . . 3 3 11 . Grunt 30 | . 11 . . . 4 10 5 Brawler 2 | . . . . . . . 2 Duelist 2 | . . . . . 1 . 1 Sentry 19 | . . . . . 9 10 . Specialist 3 | . . . . . . 3 . Hunter 7 | . . . . . 3 3 1 Programmer 2 | . . . . . . 2 . Guerrilla 1 | . . . . . . 1 . Best Kill Streak 4 | . 4 . . 3 4 4 4 Combat Bots Only 4 | . 3 . . 3 3 4 4 Max Kills in Single Turn 2 | . 1 . . 2 1 1 1 Gunslinging . | . . . . . . . . Exploded . | . . . . . . . . Melee 2 | . . . . 2 1 1 1 Uniques/NPCs Destroyed . | . . . . . . . . Combat | -11 -10 -10 -10 -9 -8 -8 -8 -------- Run | Yrd Mat Min Exi Min Mat Gar Mat Hostile Shots Fired 655 | . 47 . . 44 146 363 55 Missed 170 | . 13 . . 12 41 88 16 Damage Taken 4900 | . 261 . . 210 1107 2878 444 Core 687 | . 48 . . 87 144 312 96 Absorbed by Shields . | . . . . . . . . Redirected to Shielding 269 | . . . . . 38 152 79 Ignored by Resistances 1441 | . 85 . . 64 320 844 128 Regen/Repaired (Parts) 200 | . 91 . . . 109 . . Core Remaining (%) 73 | 100 . . . 46 . . . Volleys Fired 346 | . 53 . . . 105 150 38 Largest 2 | . 2 . . . 2 2 1 Hottest 103 | . 103 . . . 56 100 48 Shots Fired 453 | . 105 . . . 138 173 37 Gun 234 | . 22 . . . 138 74 . Cannon 200 | . 83 . . . . 80 37 Launcher . | . . . . . . . . Special 19 | . . . . . . 19 . Kinetic 391 | . 74 . . . 138 142 37 Thermal 41 | . 31 . . . . 10 . Explosive . | . . . . . . . . Electromagnetic 4 | . . . . . . 4 . Robot Hit Streak 30 | . 25 . . . 23 30 12 Robot Miss Streak 3 | . 3 . . . 3 3 2 Penetration Max 1 | . . . . . 1 1 . Secondary Targets 1 | . . . . . 1 . . Max Gunslinging Chain 1 | . . . . . 1 . . Shots Hit Robots 425 | . 77 . . 8 137 166 37 Core Hits 158 | . 33 . . 3 48 61 13 Critical Kills 8 | . . . . 2 4 2 . Critical Parts Destroyed 15 | . . . . 1 3 9 2 Critical Strikes 44 | . 2 . . 3 7 27 5 Destroy 5 | . . . . . 2 3 . Blast 16 | . 2 . . . . 11 3 Corrupt 1 | . . . . . . 1 . Smash 18 | . . . . 3 5 8 2 Sever 4 | . . . . . . 4 . Melee Attacks 101 | . . . . 12 31 51 7 Impact 68 | . . . . 12 29 21 6 Slashing 30 | . . . . . . 30 . Piercing . | . . . . . . . . Sneak Attacks 4 | . . . . . 3 . 1 Combat Hostiles . | . . . . . . . . Follow-up Attacks 4 | . . . . 2 2 . . Damage Inflicted 10148 | . 1334 . . 219 2880 4557 1158 Guns 3651 | . 127 . . . 2263 1261 . Cannons 3588 | . 1192 . . . . 1514 882 Explosions . | . . . . . . . . Melee 2838 | . . . . 219 611 1733 275 Ramming 41 | . 15 . . . 6 19 1 Kinetic 6619 | . 802 . . . 2263 2672 882 Thermal 641 | . 517 . . . . 124 . Explosive . | . . . . . . . . Electromagnetic 9 | . . . . . . 9 . Impact 1792 | . . . . 219 611 687 275 Slashing 1046 | . . . . . . 1046 . Piercing . | . . . . . . . . Highest Corruption 9 | . 1 1 1 1 1 9 9 Average Corruption 4 | . 1 1 1 1 1 8 9 Corruption Purged . | . . . . . . . . Corruption Blocked . | . . . . . . . . Effects 192 | . 4 . 5 4 38 120 21 Message Errors 38 | . 2 . 1 3 6 21 5 Matter Fused 51 | . 1 . 1 1 8 35 5 Heat Flow Errors 21 | . . . . . 3 15 3 Energy Discharges 25 | . . . 1 . 8 14 2 Parts Rejected 4 | . . . . . 2 1 1 Parts Fused 3 | . . . . . 1 2 . Data Loss (minor) 27 | . . . 1 . 7 17 2 Data Loss (major) 8 | . . . . . 1 7 . Misfires 4 | . . . . . 1 3 . Alerts 7 | . 1 . 1 . . 3 2 Weapon Failures 4 | . . . . . 1 2 1 Overload Shots . | . . . . . . . . Overflow Damage 651 | . . . . 20 61 387 183 Projectiles 38 | . . . . . . 37 1 Explosions . | . . . . . . . . Melee 613 | . . . . 20 61 350 182 Knockbacks 36 | . 13 . . 1 1 15 6 Impact 6 | . . . . 1 1 3 1 Kinetic 26 | . 12 . . . . 10 4 Secondary 4 | . 1 . . . . 2 1 Self-Inflicted Damage 7 | . 7 . . . . . . Shots . | . . . . . . . . Rammed 7 | . 1 . . . 1 5 . Targets Rammed 8 | . 1 . . . 1 5 1 Kicked 1 | . . . . . . . 1 Crushed . | . . . . . . . . Highest Temperature 359 | . 318 . . . 196 359 238 Average Temperature 94 | . 76 . . . 71 104 86 Received Heat Transfer 1686 | . 129 . . . 378 909 270 Effects 3 | . . . . . . 3 . Energy Bleed 1 | . . . . . . 1 . Interference 2 | . . . . . . 2 . Siege Activations . | . . . . . . . . Robots Corrupted . | . . . . . . . . Combat Hostiles . | . . . . . . . . Parts Fried 7 | . . . . . 4 2 1 Impact Corruptions 19 | . . . . 2 4 9 4 Robots Melted . | . . . . . . . . Combat Hostiles . | . . . . . . . . Parts Melted 1 | . 1 . . . . . . Heat Transferred 1307 | . 925 . . . . 382 . Parts Sabotaged . | . . . . . . . . Parts Stolen . | . . . . . . . . Parts Stripped . | . . . . . . . . Power Chain Reactions . | . . . . . . . . Alert | -11 -10 -10 -10 -9 -8 -8 -8 ------- Run | Yrd Mat Min Exi Min Mat Gar Mat Peak Influence 2838 | . 183 2 . 70 264 2838 1377 Initial 1191 | . . 2 . . . . 1191 Average 433 | . 58 2 . 58 35 1166 1255 Maximum Alert Level 5 | . . . . . 1 5 4 Low Security (%) 66 | 100 100 100 . 100 98 6 . Level 1 8 | . . . . . 1 26 . Level 2 2 | . . . . . . 8 . Level 3 3 | . . . . . . 12 1 Level 4 9 | . . . . . . 14 98 Level 5 9 | . . . . . . 32 . High Security . | . . . . . . . . Max Security . | . . . . . . . . Squads Dispatched 6 | . 3 . . . 1 . 2 Investigation 5 | . 3 . . . 1 . 1 Extermination . | . . . . . . . . Reinforcement . | . . . . . . . . Assault 1 | . . . . . . . 1 Garrison . | . . . . . . . . Intercept . | . . . . . . . . Searches Triggered . | . . . . . . . . Construction Impeded . | . . . . . . . . Haulers Reinforced . | . . . . . . . . Active Scanning Responses . | . . . . . . . . Cargo Convoy Interrupts . | . . . . . . . . Stealth | -11 -10 -10 -10 -9 -8 -8 -8 --------- Run | Yrd Mat Min Exi Min Mat Gar Mat Distress Signals 9 | . 4 . . . 2 . 3 Communications Jammed . | . . . . . . . . Distress Signals . | . . . . . . . . Times Spotted 148 | . 33 . . 4 47 47 17 Peak Tracking Total 5 | . 5 . . 4 4 5 5 Tactical Retreats 6 | . 4 . . . 1 1 . Traps | -11 -10 -10 -10 -9 -8 -8 -8 ------- Run | Yrd Mat Min Exi Min Mat Gar Mat Traps Triggered 15 | . 5 . . . 3 7 . Indirectly . | . . . . . . . . Trap Hack Attempts . | . . . . . . . . Triggered . | . . . . . . . . Disarmed . | . . . . . . . . Reprogrammed . | . . . . . . . . Reused . | . . . . . . . . Traps Extracted . | . . . . . . . . Installed . | . . . . . . . . Triggered . | . . . . . . . . Machines | -11 -10 -10 -10 -9 -8 -8 -8 ---------- Run | Yrd Mat Min Exi Min Mat Gar Mat Machines Disabled 19 | . 1 . . . 4 14 . Max in Single Turn 2 | . 1 . . . 1 2 . Garrison Relay 6 | . . . . . . 6 . Phase Generator 1 | . . . . . . 1 . Machines Repaired . | . . . . . . . . Machines Dismantled . | . . . . . . . . Machines Sabotaged . | . . . . . . . . Overloaded Fab Kills . | . . . . . . . . Hacking | -11 -10 -10 -10 -9 -8 -8 -8 --------- Run | Yrd Mat Min Exi Min Mat Gar Mat Machines Accessed 32 | . 10 . . . 17 3 2 Terminals 23 | . 8 . . . 11 3 1 Fabricators . | . . . . . . . . Repair Stations 4 | . 1 . . . 2 . 1 Recycling Units 2 | . 1 . . . 1 . . Scanalyzers 2 | . . . . . 2 . . Garrison Access 1 | . . . . . 1 . . Total Hacks 110 | . 35 . . . 59 8 8 Successful 71 | . 22 . . . 43 3 3 Failed 39 | . 13 . . . 16 5 5 Catastrophic 3 | . . . . . 2 1 . Database Lockouts . | . . . . . . . . Manual 62 | . 15 . 1 . 38 4 4 Terminals 86 | . 28 . . . 45 8 5 Fabricators . | . . . . . . . . Repair Stations 14 | . 5 . . . 6 . 3 Recycling Units 3 | . 2 . . . 1 . . Scanalyzers 5 | . . . . . 5 . . Garrison Access 2 | . . . . . 2 . . Terminal Hacks 23 | . 8 . . . 11 3 1 Record 1 | . 1 . . . . . . Robot Analysis 6 | . 2 . . . 4 . . Prototype ID Bank 5 | . 2 . . . 2 . 1 Open Door 1 | . . . . . . 1 . Branch Access Points 1 | . . . . . 1 . . Emergency Access Points 2 | . 1 . . . . 1 . Scanalyzer Index 1 | . . . . . 1 . . Alert Level 1 | . . . . . 1 . . Unreport Threat 1 | . 1 . . . . . . Hauler Manifests 1 | . 1 . . . . . . Registered Components 1 | . . . . . 1 . . Zone Layout 1 | . . . . . 1 . . Patrol Navigation 1 | . . . . . . 1 . Fabricator Hacks . | . . . . . . . . Repair Station Hacks 12 | . 5 . . . 6 . 1 Scan Component 7 | . 3 . . . 3 . 1 Repair 5 | . 2 . . . 3 . . Recycling Unit Hacks 3 | . 2 . . . 1 . . Report Inventory 1 | . 1 . . . . . . Retrieve Components 2 | . 1 . . . 1 . . Scanalyzer 5 | . . . . . 5 . . Insert Component 3 | . . . . . 3 . . Analyze 2 | . . . . . 2 . . Garrison Access Hacks 2 | . . . . . 2 . . Unlock Access 1 | . . . . . 1 . . Coupler Status 1 | . . . . . 1 . . Unauthorized Hacks 26 | . 7 . . . 18 . 1 Terminals 26 | . 7 . . . 18 . 1 Track 2 | . . . . . 2 . . Assimilate 6 | . 1 . . . 5 . . Botnet 18 | . 6 . . . 11 . 1 Fabricators . | . . . . . . . . Repair Stations . | . . . . . . . . Recycling Units . | . . . . . . . . Scanalyzers . | . . . . . . . . Garrison Access . | . . . . . . . . Data Cores Recovered . | . . . . . . . . Used . | . . . . . . . . Hacking Detections 28 | . 8 . . . 16 2 2 Full Trace Events 9 | . 5 . . . 2 1 1 Feedback Events . | . . . . . . . . Feedback Blocked . | . . . . . . . . Robot Schematics Acquired . | . . . . . . . . Robots Built . | . . . . . . . . Authchips . | . . . . . . . . Time . | . . . . . . . . Total Robot Build Rating . | . . . . . . . . Part Schematics Acquired 2 | . . . . . 2 . . Parts Built . | . . . . . . . . Authchips . | . . . . . . . . Time . | . . . . . . . . Total Part Build Rating . | . . . . . . . . Parts Repaired 5 | . 2 . . . 3 . . Time 160 | . 52 . . . 108 . . Parts Recycled . | . . . . . . . . Recycled Matter . | . . . . . . . . Retrieved Matter . | . . . . . . . . Retrieved Components 14 | . 5 . . . 9 . . Parts Scanalyzed 2 | . . . . . 2 . . Part Schematics Acquired 2 | . . . . . 2 . . Parts Damaged . | . . . . . . . . Bothacking | -11 -10 -10 -10 -9 -8 -8 -8 ------------ Run | Yrd Mat Min Exi Min Mat Gar Mat Used RIF Installer 1 | . . . . . . 1 . Robots Hacked 6 | . . . . . 2 3 1 Non-combat 2 | . . . . . 2 . . Combat 4 | . . . . . . 3 1 Robot Hacks Applied 7 | . . . . . 2 4 1 parse_system 7 | . . . . . 2 4 1 Relay Couplers Released 24 | . . . . . . 24 . Machine Destruction 24 | . . . . . . 24 . Fabnet Peak Effective % . | . . . . . . . . Robots Rewired 10 | . . . . . . 10 . Allies Hacked 1 | . . . . . . 1 . Hacks Repelled . | . . . . . . . . Allies | -11 -10 -10 -10 -9 -8 -8 -8 -------- Run | Yrd Mat Min Exi Min Mat Gar Mat Total Allies 13 | . . . . . 1 12 . Largest Group 5 | . . . . . 1 5 3 Highest-Rated Group 87 | . . . . . 10 87 45 Highest-Rated Ally 39 | . . . . . 10 39 15 Total Orders 5 | . . . . . 3 2 . STAY 3 | . . . . . 1 2 . FOLLOW 2 | . . . . . 2 . . Ally Attacks 66 | . . . . . . 42 24 Total Damage 1217 | . . . . . . 763 454 Kills 14 | . . . . . . 8 6 Allies Corrupted 1 | . . . . . . 1 . Allies Melted . | . . . . . . . . Intel | -11 -10 -10 -10 -9 -8 -8 -8 ------- Run | Yrd Mat Min Exi Min Mat Gar Mat Robot Analysis Total 5 | . 2 . . . 3 . . Derelict Logs Recovered 1 | . . . . 1 . . . Drone Launches . | . . . . . . . . Drone Recoveries . | . . . . . . . . Exploration | -11 -10 -10 -10 -9 -8 -8 -8 ------------- Run | Yrd Mat Min Exi Min Mat Gar Mat Turns Passed 14190 | 38 1773 88 697 449 6498 3904 743 Spaces Moved 5715 | 32 1273 45 474 314 1910 1469 198 Core 15 | 6 7 . . . 2 . . Treads 1995 | . . . . . 1428 567 . Legs 1263 | . 162 . . . 1 902 198 Wheels 2442 | 26 1104 45 474 314 479 . . Hover . | . . . . . . . . Flight . | . . . . . . . . Fastest Speed 50 | 50 80 140 130 130 115 195 195 Average Speed 178 | 82 108 140 135 130 217 214 195 Slowest Speed 1700 | 90 250 140 140 130 1700 330 196 Overloaded Moves . | . . . . . . . . Propulsion Burnouts . | . . . . . . . . Robots Hopped . | . . . . . . . . Cave-ins Triggered . | . . . . . . . . Exploration Rate (%) 60 | 4 98 13 78 86 94 94 17 Regions Visited 7 Branch Regions 3 Pre-discovered Areas . | . . . . . . . . Known Exits Taken 2 | . . . . 1 1 . . Unknown Exits Taken 4 | 1 1 1 1 . . . . Scrap Searched 2 | . . . . 2 . . . Spaces Dug 1 | . . . . . . 1 . Terrain Destroyed 67 | . . . . . 3 51 13 Melee . | . . . . . . . . Projectile 18 | . . . . . 3 2 13 AOE 49 | . . . . . . 49 . Terrain Rammed . | . . . . . . . . Walls Destroyed . | . . . . . . . . Machines Disabled . | . . . . . . . . Actions | -11 -10 -10 -10 -9 -8 -8 -8 --------- Run | Yrd Mat Min Exi Min Mat Gar Mat Total 9115 | 43 1562 70 533 341 4086 1975 505 Wait 2546 | . 144 26 41 16 1920 146 253 Move 5709 | 31 1272 44 473 313 1910 1468 198 Hop . | . . . . . . . . Pick Up 120 | 6 41 . 3 2 34 31 3 Fast Attach 42 | . 15 . 2 . 11 13 1 Attach 30 | 6 3 . 5 . 8 8 . Detach 4 | . . . 2 . 1 1 . Swap 63 | . 9 . . . 27 25 2 Drop 115 | . 24 . 7 2 41 39 2 Fire 346 | . 53 . . . 105 150 38 Melee 94 | . . . . 8 28 51 7 Ram 1 | . 1 . . . . . . Kick 1 | . . . . . . . 1 Crush 6 | . . . . . 1 5 . Escape Stasis 19 | . . . . . . 19 . Rewire 19 | . . . . . . 19 . Trap . | . . . . . . . . Miscellaneous . | . . . . . . . . Route ------- -11/Scrapyard -10/Materials (discovered 5 exits: [*Mat x3] / [*Min x2]) -10/Mines (discovered 2 exits: [*Mat] / *Exi) -10/Exiles -9/Mines (discovered 2 exits: *Mat x2) -8/Materials (discovered 5 exits: [*Fac x2] / *Sto x2 / Gar) -8/Garrison (discovered 4 exits: *Mat x4) -8/Materials History --------- Turn | Location | Event 23 | -11/Scrapyard | Discovered new exit (range 15) 39 | -11/Scrapyard | Entered Materials 250 | -10/Materials | Repaired Lgt. Ion Engine 267 | -10/Materials | Discovered new exit (range 16) 345 | -10/Materials | Build established: Mutant 446 | -10/Materials | Discovered new exit (range 14) 651 | -10/Materials | Repaired Lgt. Cannon 807 | -10/Materials | Discovered new exit (range 16) 1005 | -10/Materials | Discovered new exit (range 14) 1261 | -10/Materials | Discovered new exit (range 12) 1812 | -10/Materials | Entered Mines 1819 | -10/Mines | Discovered new exit (range 10) 1893 | -10/Mines | Deemed a non-threat by the Exiles lab entrance 1894 | -10/Mines | Discovered new exit (range 5) 1900 | -10/Mines | Entered Exiles 1933 | -10/Exiles | Met 8R-AWN 1958 | -10/Exiles | Met EX-HEX 2010 | -10/Exiles | Met EX-DEC 2162 | -10/Exiles | Met EX-BIN 2185 | -10/Exiles | Aligned with FarCom system 2186 | -10/Exiles | Given EX-Vault access code 2239 | -10/Exiles | Opened EX-Vault 2249 | -10/Exiles | Found Prototype Energy Cannon 2249 | -10/Exiles | Identified Latent Energy Streamer 2260 | -10/Exiles | Found Prototype Device 2260 | -10/Exiles | Identified Skeleton Box 2274 | -10/Exiles | Found Prototype Ballistic Cannon 2305 | -10/Exiles | Warned to stay clear of 0b10 Research branches 2445 | -10/Exiles | Visited The Gauntlet 2582 | -10/Exiles | Discovered new exit (range 12) 2597 | -10/Exiles | Stole three prototypes: Skeleton Box, Latent Energy Streamer, AWS/Autocannon 2597 | -10/Exiles | Entered Mines 2624 | -9/Mines | Core integrity fell below 50% 2654 | -9/Mines | Found a hidden stash of uninstalled traps 2694 | -9/Mines | Received a Rocket Launcher from a helpful Derelict 2963 | -9/Mines | A weapon hastily lodged in a ceiling crevice suddenly fell to the ground 3006 | -9/Mines | Discovered new exit (range 12) 3016 | -9/Mines | Identified exit to Materials 3046 | -9/Mines | Entered Materials 3046 | -8/Materials | Evolved 4 slots: Propulsion x2, Utility x2 3928 | -8/Materials | Discovered new exit (range 5) 4787 | -8/Materials | Repaired Core Shielding 4808 | -8/Materials | Build established: Scavenger-Mutant 6280 | -8/Materials | Build established: Mutant 6633 | -8/Materials | Discovered new exit (range 5) 6937 | -8/Materials | Discovered new exit (range 14) 7034 | -8/Materials | Discovered new exit (range 15) 8419 | -8/Materials | Identified exit to Storage 9007 | -8/Materials | Repaired Lgt. Nuclear Core 9052 | -8/Materials | Repaired Gauss Rifle 9544 | -8/Materials | Identified exit to Garrison 9544 | -8/Materials | Entered Garrison 9544 | -8/Garrison | Accompanied by 1 ally 9636 | -8/Garrison | Phase Generator disabled 9841 | -8/Garrison | Build established: Scavenger-Mutant 9946 | -8/Garrison | Lost 7 parts (1p3n1u2w) 10138 | -8/Garrison | Triggered checkpoint 10304 | -8/Garrison | Garrison Relay disabled 10686 | -8/Garrison | Core integrity fell below 50% 10725 | -8/Garrison | Lost 4 allies 10825 | -8/Garrison | Triggered checkpoint 10863 | -8/Garrison | Triggered checkpoint 10924 | -8/Garrison | Triggered checkpoint 10934 | -8/Garrison | Build established: Mutant 10988 | -8/Garrison | Triggered checkpoint 11147 | -8/Garrison | Garrison Relay disabled 11240 | -8/Garrison | Rescued a captive Derelict 11241 | -8/Garrison | Rescued a captive Derelict 11499 | -8/Garrison | Garrison Relay disabled 11521 | -8/Garrison | Triggered checkpoint 11631 | -8/Garrison | Discovered new exit (range 15) 11720 | -8/Garrison | Build established: Scavenger-Mutant 11786 | -8/Garrison | Triggered checkpoint 11824 | -8/Garrison | Garrison Relay disabled 12127 | -8/Garrison | Discovered new exit (range 14) 12182 | -8/Garrison | Triggered checkpoint 12236 | -8/Garrison | Discovered new exit (range 3) 12269 | -8/Garrison | Core integrity fell below 20% 12382 | -8/Garrison | Triggered checkpoint 12426 | -8/Garrison | Garrison Relay disabled 12639 | -8/Garrison | Spotted B-75 Beast 12808 | -8/Garrison | Discovered new exit (range 10) 12939 | -8/Garrison | Garrison Relay disabled 12998 | -8/Garrison | Installed Relay Interface Framework 13448 | -8/Garrison | Entered Materials 13448 | -8/Materials | Accompanied by 3 allies 13677 | -8/Materials | Lost 3 allies 13848 | -8/Materials | First assault squad dispatched 14191 | -8/Materials | Destroyed by G-47 Trooper with Particle Gun Last Messages --------------- 14169_ Destroyed Sml. Matter Pod. 14169_ K-01 Serf system corrupted by crushing effect. 14169_ K-01 Serf destroyed. 14172_ Acquired 9 matter. 14173_ System corrupted: Heat flow error (+111). 14174_ H-55 Commando suffers critical hit (Smash). 14174_ Destroyed Carbon-fiber Leg. 14174_ H-55 Commando system corrupted by crushing effect. 14174_ H-55 Commando knocked back. 14175_ H-55 Commando system terminally corrupted. 14175_ Carbon-fiber Leg fried. 14175_ K-01 Serf collects debris. 14177_ Acquired 23 matter. 14178_ K-01 Serf collects debris. 14189_ B-36 Bruiser destroyed. 14190_ K-01 Serf collects debris. Map ----- +----------------------------------------------------+ | ?????????????????????????????????????????????????? | | ?????????????????????????????????????????????????? | | ?????????????????????????????????????????????????? | | ?????????????????????????????????????????????????? | | ?????????????????????????????????????????????????? | | ?????????????????????????????????????????????????? | | ?????????????????????????????????????????????????? | | ?????????????????????????????????????????????????? | | ?????????????????????????????????????????????????? | | ?????????????????????????????????????????????????? | | ?????????????????????????????????????????????????? | | ?????????????????????????????????????????????????? | | ???????????????????? ??????????????????????????? | | ???????????????????# +?????????????????????????? | | ???????????????????# #?????????????????????????? | | ???????????????????# #?????????????????????????? | | ?????######????????# %#?????????????????????????? | | ###### #????????#!% #?????????????????????????? | | # #????????#%* #####?????????????????????? | | # %#????????#= ?????????????????????? | | """ # #???????## a ???????????????????????? | | """ # %%%##????? ##% ??a?????????????????????? | | !""" #%*=!## ??? ## "##########???????????????? | | %=! #%!%%##? ##a "# #???????????????? | | #+######+######+### % # """ =#???????????????? | | %"* % % =#@ """ #???????????????? | | % %% % *gk """ #???????????????? | | % % %% % =# !#???????????????? | | #+################# # """ #???????????????? | | #????????????## ## """ #???????????????? | | =#?????????????# ## """ #???????????????? | | %=] #?????????????# ## #???????????????? | | =]] #?????????????+ ###########???????????????? | | =]] #???????????? # ?????????????????????????? | | #??????????? # ????????????????????????? | | ######?????????? ?# ???????????????????????? | | ??????????????? ??# ###+??????????????????????? | | ?????????????? ???# #?????????????????????????? | | ???????????????#???# #?????????????????????????? | | ???????????????????# #?????????????????????????? | | ???????????????????# #?????????????????????????? | | ???????????????????# #?????????????????????????? | | ???????????????????? ??????????????????????????? | | ?????????????????????????????????????????????????? | | ?????????????????????????????????????????????????? | | ?????????????????????????????????????????????????? | | ?????????????????????????????????????????????????? | | ?????????????????????????????????????????????????? | | ?????????????????????????????????????????????????? | | ?????????????????????????????????????????????????? | +----------------------------------------------------+ Best States ------------- Heat Dissipation 31 Energy Generation 18 Energy Capacity 275 Matter Stores 300 Matter Capacity 300 Sight Range 16 Terrain Scan Density 10 ECM Strength 1 Armor Coverage 300 Resistance: KI 20 Resistance: TH 20 Resistance: EX 20 Resistance: EM 20 Resistance: I 20 Resistance: S 20 Resistance: P 20 Core Shielding 20 Propulsion Shielding 66 Utility Shielding 33 Weapon Shielding 66 Evasion (%) 55 Armor Integrity Analysis 30 Recoil Reduction 4 Offensive Hacking 10 Authchip Count 4 Item Schematics ----------------- Titanium Leg | -8/Materials | Scanalyzed Imp. Sensor Array | -8/Materials | Scanalyzed Robot Schematics ------------------ None Fabricated ------------ Nothing Alien Tech Used ----------------- None Achievements -------------- None Challenges ------------ None Game ------ Seed BombardmentArmorProtomatter Manual? 0 Play Time 01:50:22 Cumulative 49.8 hours Start 2024.07.19 @ 17:18:13 End 2024.07.20 @ 09:41:07 Sessions 3 Manual Loads 0 Difficulty Adventurer Special Mode None Game No. 78 Rogue 0 Adventurer 78 Explorer 0 Win Type - Total 0 Types 0/0/0/0/0/0/0/0/0 Lore% 40 Gallery% 37 Achievement% 30 Wizard Run 0 Options --------- Layout 2 ASCII 0 Keyboard 0 Movement Mouse Keybinds 0 Fullscreen 2 Font 48/Smallcaps Map View 50x44 Zoom Use 5% Tactical HUD 1 Map Filters NONE Filters NONE Steam 1 RUN: fb30e911-0929-417d-a0c4-e4efa3f3e832